fUST/lending_fUST_20250210
["ID","MTS","AMOUNT","RATE_DAILY","PERIOD"]
[352597055,1739187046775,-500.0,0.00012602,2]
[352597056,1739187046785,-500.0,0.00012602,2]
[352597057,1739187046796,-500.0,0.00012602,2]
[352597058,1739187046806,-500.0,0.00012602,2]
[352597059,1739187046816,-500.0,0.00012602,2]
[352597060,1739187046825,-590.29943482,0.00012602,2]
[352597061,1739187046835,-500.0,0.00012602,2]
[352597062,1739187046845,-281.80556329,0.00012602,2]
[352597063,1739187046856,-628.24,0.00012602,2]
[352597064,1739187046865,-659.57,0.00012602,2]
[352597065,1739187046875,-500.0,0.00012602,2]
[352597066,1739187046885,-2503.26,0.00012602,2]
[352597067,1739187046895,-1202.04,0.00012602,2]
[352597068,1739187046906,-1412.81,0.00012602,2]
[352597069,1739187046916,-575.5,0.00012602,2]
[352597070,1739187046926,-1069.56,0.00012602,2]
[352597071,1739187046936,-620.32,0.00012602,2]
[352597072,1739187046946,-500.0,0.00012602,2]
[352597073,1739187046956,-500.0,0.00012602,2]
[352597074,1739187046965,-500.0,0.00012602,2]
[352597075,1739187046976,-796.85,0.00012602,2]
[352597076,1739187046987,-567.34,0.00012602,2]
[352597077,1739187046997,-500.0,0.00012602,2]
[352597078,1739187047008,-13492.94,0.00012602,2]
[352597079,1739187047019,-500.0,0.00012602,2]
[352597080,1739187047030,-1067.17,0.00012602,2]
[352597081,1739187047040,-5296.47,0.00012602,2]
[352597082,1739187047050,-614.8,0.00012602,2]
[352597083,1739187047060,-2375.49,0.00012602,2]
[352597084,1739187047071,-500.0,0.00012602,2]
[352597085,1739187047081,-500.0,0.00012602,2]
[352597086,1739187047091,-1126.38,0.00012602,2]
[352597087,1739187047101,-567.25,0.00012602,2]
[352597088,1739187047113,-500.0,0.00012602,2]
[352597089,1739187047124,-453.19226942,0.00012602,2]
[352597090,1739187047808,-818.65,0.00010958,2]
[352597091,1739187047819,-500.0,0.00010958,2]
[352597092,1739187047829,-818.65,0.00011095,2]
[352597093,1739187047840,-500.0,0.00011095,2]
[352597094,1739187047850,-818.65,0.00011232,2]
[352597095,1739187047861,-818.65,0.00011369,2]
[352597096,1739187047872,-818.65,0.00011506,2]
[352597097,1739187047881,-238.27039087,0.00011643,2]
[352597098,1739187952131,-900.0,9.598e-05,2]
[352597099,1739188028086,-450.0,9.407e-05,2]
[352597100,1739188043324,-4550.0,9.407e-05,2]
[352597101,1739188043346,-3791.77711645,9.502e-05,2]
[352597102,1739188043366,-695.1323495,9.992e-05,2]
[352597103,1739188043389,-400.0,0.00010685,2]
[352597104,1739188043411,-300.0,0.0001081,2]
[352597105,1739188043432,-2151.10237774,0.00010811,2]
[352597106,1739188047081,-5287.59515504,0.00010811,2]
[352597107,1739188047104,-500.0,0.00010957,2]
[352597108,1739188047129,-500.0,0.00010957,2]
[352597109,1739188047153,-500.0,0.00010957,2]
[352597110,1739188047175,-500.0,0.00010957,2]
[352597111,1739188047198,-633.07378706,0.00010957,2]
[352597112,1739188047221,-500.0,0.00010957,2]
[352597113,1739188047243,-104.65259992,0.00010957,2]
[352597114,1739188053100,-395.34740008,0.00010957,2]
[352597115,1739188053128,-502.68019379,0.00010957,2]
[352597116,1739188053152,-523.26795905,0.00010958,2]
[352597117,1739188053174,-500.0,0.00010958,2]
[352597118,1739188053195,-501.79114185,0.00010958,2]
[352597119,1739188053218,-500.0,0.00010958,2]
[352597120,1739188053240,-500.0,0.00010958,2]
[352597121,1739188053262,-500.0,0.00010958,2]
[352597122,1739188053283,-480.71573263,0.00010958,2]
[352597151,1739188232144,-395.35747058,0.00010847,2]
[352597152,1739188232154,-7438.69753278,0.00010955,2]
[352597153,1739188232164,-300.0,0.00010957,2]
[352597154,1739188232174,-19.28426737,0.00010958,2]
[352597155,1739188232185,-494.95366369,0.00010958,2]
[352597156,1739188232194,-500.0,0.00010958,2]
[352597157,1739188232205,-500.0,0.00010958,2]
[352597158,1739188232216,-498.68632513,0.00010958,2]
[352597159,1739188232226,-500.0,0.00010958,2]
[352597160,1739188232236,-500.0,0.00010958,2]
[352597161,1739188232246,-500.0,0.00010958,2]
[352597162,1739188232256,-500.0,0.00010958,2]
[352597163,1739188232266,-500.0,0.00010958,2]
[352597164,1739188232277,-500.0,0.00010958,2]
[352597165,1739188232286,-500.0,0.00010958,2]
[352597166,1739188232295,-500.0,0.00010958,2]
[352597167,1739188232306,-500.0,0.00010958,2]
[352597168,1739188232316,-500.0,0.00010958,2]
[352597169,1739188232326,-500.0,0.00010958,2]
[352597170,1739188232336,-500.0,0.00010958,2]
[352597171,1739188232345,-500.0,0.00010958,2]
[352597172,1739188232355,-500.0,0.00010958,2]
[352597173,1739188232365,-500.0,0.00010958,2]
[352597174,1739188232374,-500.0,0.00010958,2]
[352597175,1739188232384,-500.0,0.00010958,2]
[352597176,1739188232393,-500.0,0.00010958,2]
[352597177,1739188232403,-500.0,0.00010958,2]
[352597178,1739188232412,-500.0,0.00010958,2]
[352597179,1739188232421,-500.0,0.00010958,2]
[352597180,1739188232431,-500.0,0.00010958,2]
[352597181,1739188232441,-500.0,0.00010958,2]
[352597182,1739188232450,-500.0,0.00010958,2]
[352597183,1739188232460,-500.0,0.00010958,2]
[352597184,1739188232470,-539.40651127,0.00010958,2]
[352597185,1739188232479,-500.0,0.00010958,2]
[352597186,1739188232488,-500.0,0.00010958,2]
[352597187,1739188232498,-500.0,0.00010958,2]
[352597188,1739188232508,-500.0,0.00010958,2]
[352597189,1739188232520,-500.0,0.00010958,2]
[352597190,1739188232530,-500.0,0.00010958,2]
[352597191,1739188232539,-500.0,0.00010958,2]
[352597192,1739188232549,-336.88938994,0.00010958,2]
[352597193,1739188232558,-500.0,0.00010958,2]
[352597194,1739188232567,-500.0,0.00010958,2]
[352597195,1739188232576,-500.0,0.00010958,2]
[352597196,1739188232585,-500.0,0.00010958,2]
[352597197,1739188232594,-500.0,0.00010958,2]
[352597198,1739188232604,-500.0,0.00010958,2]
[352597199,1739188232614,-500.0,0.00010958,2]
[352597200,1739188232623,-500.0,0.00010958,2]
[352597201,1739188232633,-500.0,0.00010958,2]
[352597202,1739188232642,-500.0,0.00010958,2]
[352597203,1739188232651,-500.0,0.00010958,2]
[352597204,1739188232661,-500.0,0.00010958,2]
[352597205,1739188232670,-373.35901399,0.00010958,2]
[352597206,1739188232680,-500.0,0.00010958,2]
[352597207,1739188232689,-500.0,0.00010958,2]
[352597208,1739188232698,-500.0,0.00010958,2]
[352597209,1739188232707,-500.0,0.00010958,2]
[352597210,1739188232716,-500.0,0.00010958,2]
[352597211,1739188232725,-362.35952819,0.00010958,2]
[352597212,1739188232734,-766.47,0.00010958,2]
[352597213,1739188232743,-500.0,0.00010958,2]
[352597214,1739188232752,-500.0,0.00010958,2]
[352597215,1739188232761,-507.20707268,0.00010958,2]
[352597216,1739188232775,-500.0,0.00010958,2]
[352597217,1739188232784,-500.0,0.00010958,2]
[352597218,1739188232793,-500.0,0.00010958,2]
[352597219,1739188232803,-570.59,0.00010958,2]
[352597220,1739188232812,-596.26,0.00010958,2]
[352597221,1739188232821,-500.0,0.00010958,2]
[352597222,1739188232830,-500.0,0.00010958,2]
[352597223,1739188232839,-500.0,0.00010958,2]
[352597224,1739188232848,-500.0,0.00010958,2]
[352597225,1739188232857,-500.0,0.00010958,2]
[352597226,1739188232866,-500.0,0.00010958,2]
[352597227,1739188232875,-500.0,0.00010958,2]
[352597228,1739188232884,-500.0,0.00010958,2]
[352597229,1739188232893,-500.0,0.00010958,2]
[352597230,1739188232903,-500.0,0.00010958,2]
[352597231,1739188232912,-599.48,0.00010958,2]
[352597232,1739188232921,-500.0,0.00010958,2]
[352597233,1739188232931,-500.0,0.00010958,2]
[352597234,1739188232940,-500.0,0.00010958,2]
[352597235,1739188232949,-500.0,0.00010958,2]
[352597236,1739188232959,-500.0,0.00010958,2]
[352597237,1739188232968,-500.0,0.00010958,2]
[352597238,1739188232977,-500.0,0.00010958,2]
[352597239,1739188232987,-500.0,0.00010958,2]
[352597240,1739188232996,-500.0,0.00010958,2]
[352597241,1739188233005,-500.0,0.00010958,2]
[352597242,1739188233014,-500.0,0.00010958,2]
[352597243,1739188233026,-500.0,0.00010958,2]
[352597244,1739188233036,-500.0,0.00010958,2]
[352597245,1739188233046,-500.0,0.00010958,2]
[352597246,1739188233057,-500.0,0.00010958,2]
[352597247,1739188233067,-500.0,0.00010958,2]
[352597248,1739188233078,-500.0,0.00010958,2]
[352597249,1739188233087,-500.0,0.00010958,2]
[352597250,1739188233097,-500.0,0.00010958,2]
[352597251,1739188233226,-500.0,0.00010958,2]
[352597252,1739188233237,-500.0,0.00010958,2]
[352597253,1739188233248,-500.0,0.00010958,2]
[352597254,1739188233258,-500.0,0.00010958,2]
[352597255,1739188233270,-500.0,0.00010958,2]
[352597256,1739188233280,-500.0,0.00010958,2]
[352597257,1739188233291,-500.0,0.00010958,2]
[352597258,1739188233302,-500.0,0.00010958,2]
[352597259,1739188233312,-576.64,0.00010958,2]
[352597260,1739188233322,-500.0,0.00010958,2]
[352597261,1739188233332,-603.82,0.00010958,2]
[352597262,1739188233343,-500.0,0.00010958,2]
[352597263,1739188233354,-500.0,0.00010958,2]
[352597264,1739188233364,-500.0,0.00010958,2]
[352597265,1739188233373,-500.0,0.00010958,2]
[352597266,1739188233383,-500.0,0.00010958,2]
[352597267,1739188233393,-500.0,0.00010958,2]
[352597268,1739188233403,-500.0,0.00010958,2]
[352597269,1739188233413,-500.0,0.00010958,2]
[352597270,1739188233424,-202.84905446,0.00010958,2]
[352597271,1739188233435,-203.06655434,0.00010958,2]
[352597272,1739188233445,-500.0,0.00010958,2]
[352597273,1739188233455,-500.0,0.00010958,2]
[352597274,1739188233465,-500.0,0.00010958,2]
[352597275,1739188233475,-758.44,0.00010958,2]
[352597276,1739188233485,-500.0,0.00010958,2]
[352597277,1739188233495,-500.0,0.00010958,2]
[352597278,1739188233507,-500.0,0.00010958,2]
[352597279,1739188233519,-500.0,0.00010958,2]
[352597280,1739188233529,-500.0,0.00010958,2]
[352597281,1739188233539,-500.0,0.00010958,2]
[352597282,1739188233549,-501.75703181,0.00010958,2]
[352597283,1739188233559,-502.04530904,0.00010958,2]
[352597284,1739188233570,-500.0,0.00010958,2]
[352597285,1739188233580,-501.20303368,0.00010958,2]
[352597286,1739188233589,-500.91212247,0.00010958,2]
[352597287,1739188233600,-500.0,0.00010958,2]
[352597288,1739188233610,-500.0,0.00010958,2]
[352597289,1739188233620,-500.0,0.00010958,2]
[352597290,1739188233630,-292.16768748,0.00010958,2]
[352597291,1739188233640,-500.0,0.00010958,2]
[352597292,1739188233650,-500.0,0.00010958,2]
[352597293,1739188233659,-619.52,0.00010958,2]
[352597294,1739188233669,-500.0,0.00010958,2]
[352597295,1739188233678,-500.0,0.00010958,2]
[352597296,1739188233687,-500.0,0.00010958,2]
[352597297,1739188233697,-500.0,0.00010958,2]
[352597298,1739188233706,-500.0,0.00010958,2]
[352597299,1739188233715,-513.82727135,0.00010958,2]
[352597300,1739188233725,-500.0,0.00010958,2]
[352597301,1739188233735,-500.0,0.00010958,2]
[352597302,1739188233744,-500.0,0.00010958,2]
[352597303,1739188233754,-500.0,0.00010958,2]
[352597304,1739188233764,-501.64554693,0.00010958,2]
[352597305,1739188233777,-500.0,0.00010958,2]
[352597306,1739188233787,-500.0,0.00010958,2]
[352597307,1739188233796,-500.0,0.00010958,2]
[352597308,1739188233806,-1491.61,0.00010958,2]
[352597309,1739188233816,-620.67284341,0.00010958,2]
[352597310,1739188233826,-500.0,0.00010958,2]
[352597311,1739188233836,-500.0,0.00010958,2]
[352597312,1739188233846,-500.0,0.00010958,2]
[352597313,1739188233855,-500.0,0.00010958,2]
[352597314,1739188233865,-500.0,0.00010958,2]
[352597315,1739188233875,-552.74,0.00010958,2]
[352597316,1739188233884,-500.0,0.00010958,2]
[352597317,1739188233894,-500.0,0.00010958,2]
[352597318,1739188233904,-500.0,0.00010958,2]
[352597319,1739188233914,-503.0558322,0.00010958,2]
[352597320,1739188233924,-2010.96,0.00010958,2]
[352597321,1739188233935,-500.0,0.00010958,2]
[352597322,1739188233947,-500.0,0.00010958,2]
[352597323,1739188233957,-500.0,0.00010958,2]
[352597324,1739188233967,-500.0,0.00010958,2]
[352597325,1739188233978,-500.0,0.00010958,2]
[352597326,1739188233989,-6863.67,0.00010958,2]
[352597327,1739188234001,-500.0,0.00010958,2]
[352597328,1739188234011,-500.0,0.00010958,2]
[352597329,1739188234028,-500.0,0.00010958,2]
[352597330,1739188234039,-500.0,0.00010958,2]
[352597331,1739188234051,-500.0,0.00010958,2]
[352597332,1739188234062,-708.26,0.00010958,2]
[352597333,1739188234072,-1938.56,0.00010958,2]
[352597334,1739188234083,-87.66132209,0.00010958,2]
[352597335,1739188234101,-412.33867791,0.00010958,2]
[352597336,1739188234112,-500.0,0.00010958,2]
[352597337,1739188234123,-500.0,0.00010958,2]
[352597338,1739188234136,-500.0,0.00010958,2]
[352597339,1739188234147,-3219.3,0.00010958,2]
[352597340,1739188234158,-500.0,0.00010958,2]
[352597341,1739188234169,-500.0,0.00010958,2]
[352597342,1739188234179,-500.0,0.00010958,2]
[352597343,1739188234189,-500.0,0.00010958,2]
[352597344,1739188234199,-500.0,0.00010958,2]
[352597345,1739188234209,-500.0,0.00010958,2]
[352597346,1739188234220,-500.0,0.00010958,2]
[352597347,1739188234231,-500.0,0.00010958,2]
[352597348,1739188234241,-500.0,0.00010958,2]
[352597349,1739188234251,-394.04247695,0.00010958,2]
[352597350,1739188234261,-500.0,0.00010958,2]
[352597351,1739188234272,-1637.11,0.00010958,2]
[352597352,1739188234281,-1567.46,0.00010958,2]
[352597353,1739188234291,-250.70898736,0.00010958,2]
[352597354,1739188234304,-357.59101264,0.00010958,2]
[352597355,1739188234315,-297.26990718,0.00010958,2]
[352597392,1739188237952,-202.73009282,0.00010958,2]
[352597394,1739188237962,-500.0,0.00010958,2]
[352597396,1739188237972,-500.0,0.00010958,2]
[352597397,1739188237981,-500.0,0.00010958,2]
[352597398,1739188237991,-500.0,0.00010958,2]
[352597399,1739188238002,-886.59,0.00010958,2]
[352597400,1739188238011,-585.25,0.00010958,2]
[352597401,1739188238020,-20200.07,0.00010958,2]
[352597402,1739188238029,-500.0,0.00010958,2]
[352597403,1739188238038,-500.0,0.00010958,2]
[352597404,1739188238048,-631.96,0.00010958,2]
[352597405,1739188238057,-500.0,0.00010958,2]
[352597406,1739188238066,-938.32,0.00010958,2]
[352597407,1739188238075,-500.0,0.00010958,2]
[352597408,1739188238084,-8097.26,0.00010958,2]
[352597409,1739188238094,-500.0,0.00010958,2]
[352597410,1739188238103,-500.0,0.00010958,2]
[352597411,1739188238113,-500.0,0.00010958,2]
[352597412,1739188238123,-500.0,0.00010958,2]
[352597413,1739188238137,-609.62149974,0.00010958,2]
[352597414,1739188238147,-500.0,0.00010958,2]
[352597415,1739188238156,-500.0,0.00010958,2]
[352597416,1739188238166,-500.0,0.00010958,2]
[352597417,1739188238177,-500.0,0.00010958,2]
[352597418,1739188238187,-521.69,0.00010958,2]
[352597419,1739188238196,-528.6,0.00010958,2]
[352597420,1739188238208,-500.0,0.00010958,2]
[352597421,1739188238217,-870.19,0.00010958,2]
[352597422,1739188238227,-1281.1,0.00010958,2]
[352597423,1739188238237,-500.0,0.00010958,2]
[352597424,1739188238247,-500.0,0.00010958,2]
[352597425,1739188238257,-924.79,0.00010958,2]
[352597426,1739188238267,-500.0,0.00010958,2]
[352597427,1739188238279,-500.0,0.00010958,2]
[352597428,1739188238289,-500.0,0.00010958,2]
[352597429,1739188238299,-791.09,0.00010958,2]
[352597430,1739188238309,-500.0,0.00010958,2]
[352597431,1739188238318,-500.0,0.00010958,2]
[352597432,1739188238328,-500.0,0.00010958,2]
[352597433,1739188238337,-500.0,0.00010958,2]
[352597434,1739188238347,-500.0,0.00010958,2]
[352597435,1739188238356,-880.78,0.00010958,2]
[352597436,1739188238365,-500.0,0.00010958,2]
[352597437,1739188238375,-1762.12,0.00010958,2]
[352597438,1739188238383,-500.0,0.00010958,2]
[352597439,1739188238392,-636.98479699,0.00010958,2]
[352597440,1739188238401,-500.0,0.00010958,2]
[352597441,1739188238411,-500.0,0.00010958,2]
[352597442,1739188238420,-500.0,0.00010958,2]
[352597443,1739188238429,-500.0,0.00010958,2]
[352597444,1739188238439,-500.0,0.00010958,2]
[352597445,1739188238448,-3760.35,0.00010958,2]
[352597446,1739188238457,-1504.86,0.00010958,2]
[352597447,1739188238465,-899.06,0.00010958,2]
[352597448,1739188238474,-500.0,0.00010958,2]
[352597449,1739188238483,-816.13,0.00010958,2]
[352597450,1739188238492,-500.0,0.00010958,2]
[352597451,1739188238501,-500.0,0.00010958,2]
[352597452,1739188238511,-500.0,0.00010958,2]
[352597453,1739188238521,-500.0,0.00010958,2]
[352597454,1739188238531,-500.0,0.00010958,2]
[352597455,1739188238540,-1626.04,0.00010958,2]
[352597456,1739188238549,-500.0,0.00010958,2]
[352597457,1739188238559,-1151.91,0.00010958,2]
[352597458,1739188238567,-889.26,0.00010958,2]
[352597459,1739188238577,-500.0,0.00010958,2]
[352597460,1739188238586,-500.0,0.00010958,2]
[352597461,1739188238596,-661.01,0.00010958,2]
[352597462,1739188238605,-500.0,0.00010958,2]
[352597463,1739188238615,-500.0,0.00010958,2]
[352597464,1739188238624,-500.0,0.00010958,2]
[352597465,1739188238633,-500.0,0.00010958,2]
[352597466,1739188238642,-500.0,0.00010958,2]
[352597467,1739188238652,-500.0,0.00010958,2]
[352597468,1739188238662,-500.0,0.00010958,2]
[352597469,1739188238671,-500.0,0.00010958,2]
[352597470,1739188238680,-500.0,0.00010958,2]
[352597471,1739188238690,-500.0,0.00010958,2]
[352597472,1739188238699,-500.0,0.00010958,2]
[352597473,1739188238708,-391.48,0.00010959,2]
[352597474,1739188238718,-326.23,0.00010959,2]
[352597475,1739188238868,-271.86,0.00010959,2]
[352597476,1739188238879,-226.55,0.00010959,2]
[352597477,1739188238888,-188.79,0.00010959,2]
[352597478,1739188238898,-157.33,0.00010959,2]
[352597479,1739188238906,-786.66,0.00010959,2]
[352597480,1739188238916,-315.36689602,0.00010995,2]
[352597481,1739188238925,-500.0,0.00011095,2]
[352597482,1739188238934,-500.0,0.00011095,2]
[352597483,1739188238944,-500.0,0.00011095,2]
[352597484,1739188238953,-468.83,0.00011095,2]
[352597485,1739188238962,-500.0,0.00011095,2]
[352597486,1739188238972,-500.0,0.00011095,2]
[352597487,1739188238983,-500.0,0.00011095,2]
[352597488,1739188238993,-500.0,0.00011095,2]
[352597489,1739188239002,-500.0,0.00011095,2]
[352597490,1739188239011,-500.0,0.00011095,2]
[352597491,1739188239021,-500.0,0.00011095,2]
[352597492,1739188239032,-500.0,0.00011095,2]
[352597493,1739188239041,-500.0,0.00011095,2]
[352597494,1739188239050,-500.0,0.00011095,2]
[352597495,1739188239059,-500.0,0.00011095,2]
[352597496,1739188239069,-500.0,0.00011095,2]
[352597497,1739188239078,-500.0,0.00011095,2]
[352597498,1739188239087,-500.0,0.00011095,2]
[352597499,1739188239096,-500.0,0.00011095,2]
[352597500,1739188239106,-766.47,0.00011095,2]
[352597501,1739188239115,-500.0,0.00011095,2]
[352597502,1739188239125,-500.0,0.00011095,2]
[352597503,1739188239134,-500.0,0.00011095,2]
[352597504,1739188239146,-570.59,0.00011095,2]
[352597505,1739188239155,-500.0,0.00011095,2]
[352597506,1739188239165,-500.0,0.00011095,2]
[352597507,1739188239174,-500.0,0.00011095,2]
[352597508,1739188239185,-500.0,0.00011095,2]
[352597509,1739188239195,-500.0,0.00011095,2]
[352597510,1739188239203,-500.0,0.00011095,2]
[352597511,1739188239213,-599.48,0.00011095,2]
[352597512,1739188239222,-500.0,0.00011095,2]
[352597513,1739188239232,-500.0,0.00011095,2]
[352597514,1739188239242,-389.23331639,0.00011095,2]
[352597515,1739188239251,-500.0,0.00011095,2]
[352597516,1739188239260,-500.0,0.00011095,2]
[352597517,1739188239269,-500.0,0.00011095,2]
[352597518,1739188239279,-500.0,0.00011095,2]
[352597519,1739188239288,-500.0,0.00011095,2]
[352597520,1739188239297,-500.0,0.00011095,2]
[352597521,1739188239306,-500.0,0.00011095,2]
[352597522,1739188239315,-500.0,0.00011095,2]
[352597523,1739188239324,-340.17337902,0.00011095,2]
[352597524,1739188239334,-500.0,0.00011095,2]
[352597525,1739188239343,-500.0,0.00011095,2]
[352597526,1739188239352,-576.64,0.00011095,2]
[352597527,1739188239362,-500.0,0.00011095,2]
[352597529,1739188239371,-603.82,0.00011095,2]
[352597530,1739188239381,-500.0,0.00011095,2]
[352597531,1739188239390,-500.0,0.00011095,2]
[352597532,1739188239400,-423.70414032,0.00011095,2]
[352597533,1739188239410,-500.0,0.00011095,2]
[352597534,1739188239419,-500.0,0.00011095,2]
[352597535,1739188239429,-500.0,0.00011095,2]
[352597536,1739188239438,-500.0,0.00011095,2]
[352597537,1739188239447,-500.0,0.00011095,2]
[352597538,1739188239457,-500.0,0.00011095,2]
[352597539,1739188239466,-500.0,0.00011095,2]
[352597540,1739188239476,-758.44,0.00011095,2]
[352597541,1739188239485,-500.0,0.00011095,2]
[352597542,1739188239495,-500.0,0.00011095,2]
[352597543,1739188239504,-500.0,0.00011095,2]
[352597545,1739188239514,-503.27434851,0.00011095,2]
[352597546,1739188239525,-500.0,0.00011095,2]
[352597547,1739188239535,-500.0,0.00011095,2]
[352597548,1739188239545,-500.0,0.00011095,2]
[352597549,1739188239554,-500.0,0.00011095,2]
[352597550,1739188239563,-619.52,0.00011095,2]
[352597551,1739188239572,-500.0,0.00011095,2]
[352597553,1739188239581,-500.0,0.00011095,2]
[352597554,1739188239591,-500.0,0.00011095,2]
[352597555,1739188239600,-500.0,0.00011095,2]
[352597556,1739188239608,-500.0,0.00011095,2]
[352597557,1739188239618,-500.0,0.00011095,2]
[352597558,1739188239627,-500.0,0.00011095,2]
[352597559,1739188239636,-1491.61,0.00011095,2]
[352597560,1739188239645,-500.0,0.00011095,2]
[352597561,1739188239655,-500.0,0.00011095,2]
[352597562,1739188239664,-552.74,0.00011095,2]
[352597563,1739188239673,-506.22015172,0.00011095,2]
[352597564,1739188239682,-2010.96,0.00011095,2]
[352597566,1739188239691,-500.0,0.00011095,2]
[352597568,1739188239700,-500.0,0.00011095,2]
[352597569,1739188239709,-500.0,0.00011095,2]
[352597570,1739188239718,-528.34524524,0.00011095,2]
[352597571,1739188239728,-6863.67,0.00011095,2]
[352597572,1739188239738,-500.0,0.00011095,2]
[352597573,1739188239747,-708.26,0.00011095,2]
[352597574,1739188239756,-1938.56,0.00011095,2]
[352597575,1739188239766,-245.52649207,0.00011095,2]
[352597576,1739188239778,-500.0,0.00011095,2]
[352597577,1739188239787,-3219.3,0.00011095,2]
[352597579,1739188239796,-500.0,0.00011095,2]
[352597581,1739188239806,-500.0,0.00011095,2]
[352597582,1739188239815,-500.0,0.00011095,2]
[352597583,1739188239825,-500.0,0.00011095,2]
[352597584,1739188239834,-500.0,0.00011095,2]
[352597585,1739188239844,-500.0,0.00011095,2]
[352597587,1739188239853,-1637.11,0.00011095,2]
[352597588,1739188239862,-1567.46,0.00011095,2]
[352597589,1739188239872,-608.3,0.00011095,2]
[352597590,1739188239885,-500.0,0.00011095,2]
[352597591,1739188239896,-500.0,0.00011095,2]
[352597592,1739188239906,-500.0,0.00011095,2]
[352597593,1739188239916,-886.59,0.00011095,2]
[352597594,1739188239926,-585.25,0.00011095,2]
[352597595,1739188239935,-20200.07,0.00011095,2]
[352597596,1739188239945,-500.0,0.00011095,2]
[352597597,1739188239954,-631.96,0.00011095,2]
[352597598,1739188239964,-500.0,0.00011095,2]
[352597599,1739188239973,-938.32,0.00011095,2]
[352597600,1739188239984,-8097.26,0.00011095,2]
[352597601,1739188239993,-500.0,0.00011095,2]
[352597602,1739188240003,-500.0,0.00011095,2]
[352597603,1739188240013,-500.0,0.00011095,2]
[352597604,1739188240024,-500.0,0.00011095,2]
[352597605,1739188240033,-500.0,0.00011095,2]
[352597606,1739188240043,-521.69,0.00011095,2]
[352597607,1739188240052,-528.6,0.00011095,2]
[352597608,1739188240062,-870.19,0.00011095,2]
[352597609,1739188240071,-1281.1,0.00011095,2]
[352597610,1739188240080,-500.0,0.00011095,2]
[352597611,1739188240090,-924.79,0.00011095,2]
[352597612,1739188240100,-500.0,0.00011095,2]
[352597613,1739188240110,-500.0,0.00011095,2]
[352597614,1739188240120,-791.09,0.00011095,2]
[352597615,1739188240132,-500.0,0.00011095,2]
[352597616,1739188240146,-500.0,0.00011095,2]
[352597617,1739188240156,-500.0,0.00011095,2]
[352597618,1739188240166,-500.0,0.00011095,2]
[352597619,1739188240177,-880.78,0.00011095,2]
[352597620,1739188240187,-1762.12,0.00011095,2]
[352597621,1739188240196,-500.0,0.00011095,2]
[352597622,1739188240206,-391.02659562,0.00011095,2]
[352597623,1739188240217,-500.0,0.00011095,2]
[352597624,1739188240227,-500.0,0.00011095,2]
[352597625,1739188240238,-500.0,0.00011095,2]
[352597626,1739188240248,-3760.35,0.00011095,2]
[352597627,1739188240258,-1504.86,0.00011095,2]
[352597628,1739188240268,-899.06,0.00011095,2]